[Event "*** Titled Tuesday Blitz"]
[Site "Chess.com"]
[Date "2020.05.26"]
[Round "1"]
[White "Khayala13"]
[Black "KaterynaLagno"]
[Result "0-1"]
[WhiteElo "2340"]
[BlackElo "2699"]
[TimeControl "180+1"]
[EndTime "10:07:18 PDT"]
[Termination "KaterynaLagno won on time"]

1. e4 {[%clk 0:02:59.8]} 1... e5 {[%clk 0:02:59.7]} 2. Nf3 {[%clk 0:02:57.3]}
2... Nc6 {[%clk 0:02:59.8]} 3. c3 {[%clk 0:02:57.3]} 3... Nf6 {[%clk 0:02:56]}
4. d4 {[%clk 0:02:57.2]} 4... Nxe4 {[%clk 0:02:54.7]} 5. d5 {[%clk 0:02:56.9]}
5... Ne7 {[%clk 0:02:52.6]} 6. Nxe5 {[%clk 0:02:57.2]} 6... Ng6 {[%clk 0:02:46]}
7. Nxg6 {[%clk 0:02:56.7]} 7... hxg6 {[%clk 0:02:46.9]} 8. Bd3 {[%clk
0:02:57.1]} 8... Nc5 {[%clk 0:02:42.3]} 9. O-O {[%clk 0:02:56.2]} 9... Nxd3
{[%clk 0:02:40.4]} 10. Qxd3 {[%clk 0:02:57.1]} 10... Be7 {[%clk 0:02:35.8]} 11.
c4 {[%clk 0:02:52.4]} 11... d6 {[%clk 0:02:35.2]} 12. Nc3 {[%clk 0:02:51.7]}
12... Bf5 {[%clk 0:02:35]} 13. Qe2 {[%clk 0:02:48.3]} 13... Qd7 {[%clk
0:02:28.7]} 14. Re1 {[%clk 0:02:46.7]} 14... O-O {[%clk 0:02:25.6]} 15. Bd2
{[%clk 0:02:19.5]} 15... Rfe8 {[%clk 0:02:23.7]} 16. h3 {[%clk 0:02:14.3]} 16...
Bf6 {[%clk 0:02:19.4]} 17. Qf3 {[%clk 0:02:10.6]} 17... Rxe1+ {[%clk 0:02:10.7]}
18. Rxe1 {[%clk 0:02:10.4]} 18... Re8 {[%clk 0:02:11.3]} 19. g4 {[%clk
0:02:00.1]} 19... Rxe1+ {[%clk 0:02:10.2]} 20. Bxe1 {[%clk 0:02:01]} 20... Qe8
{[%clk 0:02:06.5]} 21. Bd2 {[%clk 0:01:48.3]} 21... Bc2 {[%clk 0:02:01]} 22. Nb5
{[%clk 0:01:16.9]} 22... a6 {[%clk 0:01:54.6]} 23. Nc3 {[%clk 0:00:45.9]} 23...
b5 {[%clk 0:01:52.5]} 24. cxb5 {[%clk 0:00:43.2]} 24... axb5 {[%clk 0:01:53.4]}
25. a3 {[%clk 0:00:40.1]} 25... g5 {[%clk 0:01:52.3]} 26. b4 {[%clk 0:00:26.6]}
26... Bd4 {[%clk 0:01:46.8]} 27. Ne2 {[%clk 0:00:22.4]} 27... Bd1 {[%clk
0:01:43]} 28. Be3 {[%clk 0:00:20.3]} 28... Bxe3 {[%clk 0:01:40]} 29. fxe3 {[%clk
0:00:21.2]} 29... Qe5 {[%clk 0:01:39]} 30. Kf2 {[%clk 0:00:18.2]} 30... Qh2+
{[%clk 0:01:31.9]} 31. Ke1 {[%clk 0:00:16.2]} 31... Bxe2 {[%clk 0:01:32.1]} 32.
Qxe2 {[%clk 0:00:17.1]} 32... Qxh3 {[%clk 0:01:32.7]} 33. Qxb5 {[%clk
0:00:11.2]} 33... Qxe3+ {[%clk 0:01:32.6]} 34. Kf1 {[%clk 0:00:10.5]} 34... Qxa3
{[%clk 0:01:21]} 35. Qe8+ {[%clk 0:00:10]} 35... Kh7 {[%clk 0:01:21.5]} 36. Qxf7
{[%clk 0:00:10.9]} 36... Qc1+ {[%clk 0:01:20.1]} 37. Kg2 {[%clk 0:00:10]} 37...
Qd2+ {[%clk 0:01:17.3]} 38. Kh3 {[%clk 0:00:09.4]} 38... Qe3+ {[%clk 0:01:14.2]}
39. Kg2 {[%clk 0:00:09.8]} 39... Qe4+ {[%clk 0:01:13.9]} 40. Kh3 {[%clk
0:00:09.1]} 40... Qh1+ {[%clk 0:01:12.7]} 41. Kg3 {[%clk 0:00:09.5]} 41... Qh4+
{[%clk 0:01:11.9]} 42. Kf3 {[%clk 0:00:09.9]} 42... Qh3+ {[%clk 0:01:12.2]} 43.
Kf2 {[%clk 0:00:09.9]} 43... Qxg4 {[%clk 0:01:12.1]} 44. Qxc7 {[%clk 0:00:06.3]}
44... Qxb4 {[%clk 0:01:12.6]} 45. Qc6 {[%clk 0:00:02.3]} 45... Qf4+ {[%clk
0:01:11.7]} 46. Ke2 {[%clk 0:00:02.3]} 46... g4 {[%clk 0:01:09.4]} 47. Qe8
{[%clk 0:00:01.3]} 47... Qf3+ {[%clk 0:01:02.2]} 48. Ke1 {[%clk 0:00:01.2]}
48... Qxd5 {[%clk 0:01:02.3]} 0-1

[Event "*** Titled Tuesday Blitz"]
[Site "Chess.com"]
[Date "2020.05.26"]
[Round "1"]
[White "ChessWarrior7197"]
[Black "oneshot007"]
[Result "1-0"]
[WhiteElo "2900"]
[BlackElo "2430"]
[TimeControl "180+1"]
[EndTime "10:07:19 PDT"]
[Termination "ChessWarrior7197 won on time"]

1. e4 {[%clk 0:03:00.9]} 1... c5 {[%clk 0:02:54.5]} 2. Nf3 {[%clk 0:02:59.7]}
2... Nc6 {[%clk 0:02:48.7]} 3. Bb5 {[%clk 0:02:57.6]} 3... g6 {[%clk 0:02:45.4]}
4. Bxc6 {[%clk 0:02:56.9]} 4... bxc6 {[%clk 0:02:41.4]} 5. d4 {[%clk 0:02:56.8]}
5... cxd4 {[%clk 0:02:35.1]} 6. Qxd4 {[%clk 0:02:57.7]} 6... f6 {[%clk
0:02:34.7]} 7. O-O {[%clk 0:02:55.8]} 7... Nh6 {[%clk 0:02:25.9]} 8. c4 {[%clk
0:02:55.4]} 8... Nf7 {[%clk 0:02:13.4]} 9. c5 {[%clk 0:02:53.7]} 9... Bg7 {[%clk
0:02:07.5]} 10. Rd1 {[%clk 0:02:53.5]} 10... O-O {[%clk 0:02:07.6]} 11. Nc3
{[%clk 0:02:53.1]} 11... f5 {[%clk 0:01:58.4]} 12. Qd3 {[%clk 0:02:47.9]} 12...
fxe4 {[%clk 0:01:54.9]} 13. Nxe4 {[%clk 0:02:48.8]} 13... Ne5 {[%clk 0:01:51.8]}
14. Nxe5 {[%clk 0:02:46.7]} 14... Bxe5 {[%clk 0:01:52.7]} 15. Bg5 {[%clk
0:02:34.6]} 15... Qe8 {[%clk 0:01:45.1]} 16. Rac1 {[%clk 0:02:24.7]} 16... Qf7
{[%clk 0:01:43.4]} 17. Rc2 {[%clk 0:02:24.5]} 17... a5 {[%clk 0:01:35.5]} 18.
Re1 {[%clk 0:02:22.1]} 18... a4 {[%clk 0:01:16.7]} 19. Bh6 {[%clk 0:02:20.6]}
19... Bg7 {[%clk 0:01:05.8]} 20. Bxg7 {[%clk 0:02:13.7]} 20... Qxg7 {[%clk
0:01:05.1]} 21. h4 {[%clk 0:02:09.8]} 21... Rf5 {[%clk 0:00:53.9]} 22. Ng3
{[%clk 0:02:01]} 22... Rd5 {[%clk 0:00:49.6]} 23. Qe3 {[%clk 0:02:00.8]} 23...
e5 {[%clk 0:00:39.6]} 24. Rd2 {[%clk 0:01:57.7]} 24... Ba6 {[%clk 0:00:35.1]}
25. Rxd5 {[%clk 0:01:55.2]} 25... cxd5 {[%clk 0:00:36]} 26. Qxe5 {[%clk
0:01:55.5]} 26... Qxe5 {[%clk 0:00:34.5]} 27. Rxe5 {[%clk 0:01:56.4]} 27... Rb8
{[%clk 0:00:33.3]} 28. Rxd5 {[%clk 0:01:44.1]} 28... Rxb2 {[%clk 0:00:32.9]} 29.
Rxd7 {[%clk 0:01:40.9]} 29... Rxa2 {[%clk 0:00:29.9]} 30. Ra7 {[%clk 0:01:37.7]}
30... Bb5 {[%clk 0:00:27.3]} 31. Ne4 {[%clk 0:01:34.6]} 31... Rc2 {[%clk
0:00:24.3]} 32. f3 {[%clk 0:01:27.2]} 32... Kf8 {[%clk 0:00:20]} 33. Ng5 {[%clk
0:01:18.8]} 33... Ke8 {[%clk 0:00:16.3]} 34. Ne6 {[%clk 0:01:16.9]} 34... Bc4
{[%clk 0:00:13.7]} 35. Nc7+ {[%clk 0:01:13]} 35... Kd8 {[%clk 0:00:13.5]} 36.
Na8 {[%clk 0:00:54]} 36... Bb3 {[%clk 0:00:08.6]} 37. Ra5 {[%clk 0:00:54.4]}
37... Rc1+ {[%clk 0:00:05.6]} 38. Kh2 {[%clk 0:00:53.8]} 38... Rc4 {[%clk
0:00:04.2]} 39. Nb6 {[%clk 0:00:49.5]} 39... Rxh4+ {[%clk 0:00:02.8]} 40. Kg3
{[%clk 0:00:49.8]} 40... Rb4 {[%clk 0:00:03.3]} 41. Ra7 {[%clk 0:00:49.8]} 41...
Rb5 {[%clk 0:00:01.3]} 42. Rxh7 {[%clk 0:00:36.6]} 1-0

[Event "*** Titled Tuesday Blitz"]
[Site "Chess.com"]
[Date "2020.05.26"]
[Round "1"]
[White "Munkhzul_Turmunkh"]
[Black "cukin84"]
[Result "1-0"]
[WhiteElo "2536"]
[BlackElo "2177"]
[TimeControl "180+1"]
[EndTime "10:07:19 PDT"]
[Termination "Munkhzul_Turmunkh won by resignation"]

1. e4 {[%clk 0:02:55.6]} 1... c6 {[%clk 0:02:58.2]} 2. d4 {[%clk 0:02:54.4]}
2... d5 {[%clk 0:02:57.7]} 3. e5 {[%clk 0:02:54.3]} 3... c5 {[%clk 0:02:57.3]}
4. c3 {[%clk 0:02:48]} 4... Nc6 {[%clk 0:02:56.7]} 5. Nf3 {[%clk 0:02:41.2]}
5... Bg4 {[%clk 0:02:55.1]} 6. Nbd2 {[%clk 0:02:33.5]} 6... e6 {[%clk
0:02:53.3]} 7. Be2 {[%clk 0:02:27.7]} 7... cxd4 {[%clk 0:02:47]} 8. cxd4 {[%clk
0:02:28.6]} 8... Bb4 {[%clk 0:02:46.1]} 9. O-O {[%clk 0:02:24]} 9... Nge7 {[%clk
0:02:45.2]} 10. h3 {[%clk 0:02:19.2]} 10... Bh5 {[%clk 0:02:41.9]} 11. Nb3
{[%clk 0:02:12.7]} 11... O-O {[%clk 0:02:23.6]} 12. a3 {[%clk 0:02:00.6]} 12...
Ba5 {[%clk 0:02:23]} 13. Nc5 {[%clk 0:01:55.6]} 13... Bb6 {[%clk 0:02:13]} 14.
b4 {[%clk 0:01:42.3]} 14... Bxc5 {[%clk 0:02:11.6]} 15. bxc5 {[%clk 0:01:40.5]}
15... b6 {[%clk 0:02:11.7]} 16. g4 {[%clk 0:01:29.9]} 16... Bg6 {[%clk
0:02:10.8]} 17. cxb6 {[%clk 0:01:28.3]} 17... Qxb6 {[%clk 0:02:10]} 18. Be3
{[%clk 0:01:23.3]} 18... Rab8 {[%clk 0:02:05]} 19. Nh4 {[%clk 0:01:16.3]} 19...
Be4 {[%clk 0:02:04.1]} 20. f3 {[%clk 0:01:11.6]} 20... Bg6 {[%clk 0:02:03.7]}
21. Nxg6 {[%clk 0:01:06.6]} 21... Nxg6 {[%clk 0:02:03.3]} 22. f4 {[%clk
0:01:02.4]} 22... Qb3 {[%clk 0:01:58.7]} 23. Qd2 {[%clk 0:00:52.6]} 23... Rfc8
{[%clk 0:01:38.8]} 24. f5 {[%clk 0:00:48.3]} 24... exf5 {[%clk 0:01:37.6]} 25.
gxf5 {[%clk 0:00:46.1]} 25... Nf8 {[%clk 0:01:36.8]} 26. f6 {[%clk 0:00:39.1]}
26... g6 {[%clk 0:01:28.6]} 27. Bg4 {[%clk 0:00:38.3]} 27... Rc7 {[%clk
0:01:20.7]} 28. e6 {[%clk 0:00:34]} 28... fxe6 {[%clk 0:01:20.5]} 29. Bf4 {[%clk
0:00:29.2]} 29... e5 {[%clk 0:01:05.7]} 30. dxe5 {[%clk 0:00:22.4]} 30... Re8
{[%clk 0:01:00.9]} 31. e6 {[%clk 0:00:20.4]} 31... Nxe6 {[%clk 0:00:54.6]} 32.
Bxe6+ {[%clk 0:00:20.1]} 32... Rxe6 {[%clk 0:00:53.6]} 33. Bxc7 {[%clk
0:00:19.7]} 33... Qxh3 {[%clk 0:00:51.1]} 34. f7+ {[%clk 0:00:19.5]} 34... Kf8
{[%clk 0:00:50.9]} 35. Qg2 {[%clk 0:00:19.3]} 35... Qe3+ {[%clk 0:00:47.5]} 36.
Qf2 {[%clk 0:00:19.4]} 36... Qg5+ {[%clk 0:00:46.5]} 37. Bg3 {[%clk 0:00:19.7]}
37... Nd4 {[%clk 0:00:37.9]} 38. Rae1 {[%clk 0:00:16]} 38... Re2 {[%clk
0:00:31]} 39. Rxe2 {[%clk 0:00:15.6]} 39... Nxe2+ {[%clk 0:00:30.3]} 40. Qxe2
{[%clk 0:00:16.2]} 40... Qxg3+ {[%clk 0:00:30.4]} 41. Qg2 {[%clk 0:00:16.9]}
41... Qe3+ {[%clk 0:00:30.2]} 42. Kh1 {[%clk 0:00:16.2]} 42... Qh6+ {[%clk
0:00:24.8]} 43. Qh2 {[%clk 0:00:16.5]} 43... Qe3 {[%clk 0:00:23.1]} 44. Qd6+
{[%clk 0:00:16.2]} 1-0

[Event "*** Titled Tuesday Blitz"]
[Site "Chess.com"]
[Date "2020.05.26"]
[Round "1"]
[White "BogdanDeac"]
[Black "SoltaniciR"]
[Result "1-0"]
[WhiteElo "2968"]
[BlackElo "2447"]
[TimeControl "180+1"]
[EndTime "10:07:21 PDT"]
[Termination "BogdanDeac won by resignation"]

1. Nf3 {[%clk 0:03:00.9]} 1... c5 {[%clk 0:02:58.1]} 2. c4 {[%clk 0:02:55.8]}
2... Nf6 {[%clk 0:02:57.3]} 3. Nc3 {[%clk 0:02:55.4]} 3... e6 {[%clk 0:02:57.2]}
4. g3 {[%clk 0:02:49.1]} 4... b6 {[%clk 0:02:56.4]} 5. Bg2 {[%clk 0:02:49]} 5...
Bb7 {[%clk 0:02:56.9]} 6. O-O {[%clk 0:02:49.5]} 6... a6 {[%clk 0:02:57.4]} 7.
d3 {[%clk 0:02:49.2]} 7... Be7 {[%clk 0:02:55.3]} 8. e4 {[%clk 0:02:48.7]} 8...
d6 {[%clk 0:02:54.1]} 9. Nh4 {[%clk 0:02:45.5]} 9... Nc6 {[%clk 0:02:51.8]} 10.
f4 {[%clk 0:02:44.9]} 10... Qc7 {[%clk 0:01:40.9]} 11. Nf3 {[%clk 0:02:40.3]}
11... O-O {[%clk 0:01:39.7]} 12. h3 {[%clk 0:02:35.6]} 12... Rfe8 {[%clk
0:01:38.8]} 13. g4 {[%clk 0:02:35]} 13... Bf8 {[%clk 0:01:38.2]} 14. f5 {[%clk
0:02:28.6]} 14... Nd7 {[%clk 0:01:21.2]} 15. g5 {[%clk 0:02:17.1]} 15... Nde5
{[%clk 0:01:20.5]} 16. Bf4 {[%clk 0:02:07]} 16... b5 {[%clk 0:00:48.3]} 17. fxe6
{[%clk 0:01:30.5]} 17... fxe6 {[%clk 0:00:47.6]} 18. Bxe5 {[%clk 0:01:30.2]}
18... dxe5 {[%clk 0:00:42.6]} 19. cxb5 {[%clk 0:01:29.4]} 19... axb5 {[%clk
0:00:41.3]} 20. Nxb5 {[%clk 0:01:29.3]} 20... Qb6 {[%clk 0:00:38.2]} 21. a4
{[%clk 0:01:29.2]} 21... Nb4 {[%clk 0:00:24.4]} 22. Nxe5 {[%clk 0:01:21.7]}
22... Rad8 {[%clk 0:00:24]} 23. Qf3 {[%clk 0:01:06]} 23... c4+ {[%clk
0:00:20.2]} 24. d4 {[%clk 0:01:04.3]} 24... Nc2 {[%clk 0:00:18]} 25. Rad1 {[%clk
0:00:54.2]} 25... Ba6 {[%clk 0:00:17.8]} 26. Qf7+ {[%clk 0:00:41.9]} 26... Kh8
{[%clk 0:00:17.1]} 27. Nd7 {[%clk 0:00:42]} 27... Qb7 {[%clk 0:00:08.2]} 28.
Nxf8 {[%clk 0:00:33.6]} 28... Qxf7 {[%clk 0:00:07.9]} 29. Rxf7 {[%clk
0:00:33.6]} 29... Rxf8 {[%clk 0:00:07.2]} 30. Rxf8+ {[%clk 0:00:33.4]} 30...
Rxf8 {[%clk 0:00:08.1]} 31. d5 {[%clk 0:00:31.5]} 31... Ne3 {[%clk 0:00:06.3]}
32. Rd2 {[%clk 0:00:29.9]} 32... exd5 {[%clk 0:00:04.7]} 33. exd5 {[%clk
0:00:29.6]} 33... Bxb5 {[%clk 0:00:04.8]} 34. axb5 {[%clk 0:00:29]} 34... Nxg2
{[%clk 0:00:05.3]} 35. Kxg2 {[%clk 0:00:28.6]} 35... Rb8 {[%clk 0:00:04.8]} 36.
d6 {[%clk 0:00:27.8]} 36... Kg8 {[%clk 0:00:04]} 37. d7 {[%clk 0:00:25.3]} 37...
Rd8 {[%clk 0:00:04.1]} 38. b6 {[%clk 0:00:25.5]} 38... Kf7 {[%clk 0:00:04.6]}
39. b7 {[%clk 0:00:25.4]} 39... Ke7 {[%clk 0:00:05.4]} 40. Kg3 {[%clk
0:00:24.2]} 1-0

[Event "*** Titled Tuesday Blitz"]
[Site "Chess.com"]
[Date "2020.05.26"]
[Round "1"]
[White "CarlosAlbornoz"]
[Black "ZarinaShafigullina"]
[Result "1-0"]
[WhiteElo "2704"]
[BlackElo "2344"]
[TimeControl "180+1"]
[EndTime "10:07:22 PDT"]
[Termination "CarlosAlbornoz won by resignation"]

1. e4 {[%clk 0:03:00.2]} 1... c5 {[%clk 0:02:59.3]} 2. Nf3 {[%clk 0:02:59.8]}
2... Nc6 {[%clk 0:02:59.7]} 3. d4 {[%clk 0:02:59.8]} 3... cxd4 {[%clk
0:02:59.7]} 4. Nxd4 {[%clk 0:03:00.7]} 4... Nf6 {[%clk 0:02:59.5]} 5. Nc3 {[%clk
0:03:00.8]} 5... e5 {[%clk 0:02:59.9]} 6. Ndb5 {[%clk 0:03:01.1]} 6... d6 {[%clk
0:03:00.1]} 7. Bg5 {[%clk 0:03:01.4]} 7... a6 {[%clk 0:02:59.6]} 8. Na3 {[%clk
0:03:01.7]} 8... b5 {[%clk 0:02:59.8]} 9. Bxf6 {[%clk 0:03:01.6]} 9... gxf6
{[%clk 0:02:59.6]} 10. Nd5 {[%clk 0:03:02.5]} 10... f5 {[%clk 0:02:59.9]} 11. c3
{[%clk 0:03:02.6]} 11... Bg7 {[%clk 0:02:56.9]} 12. exf5 {[%clk 0:03:02.6]}
12... Bxf5 {[%clk 0:02:53.5]} 13. Nc2 {[%clk 0:03:02.6]} 13... O-O {[%clk
0:02:51.6]} 14. Nce3 {[%clk 0:03:02.4]} 14... Bg6 {[%clk 0:02:51.3]} 15. h4
{[%clk 0:03:02]} 15... Ne7 {[%clk 0:02:41.1]} 16. Nxe7+ {[%clk 0:02:49.6]} 16...
Qxe7 {[%clk 0:02:40.2]} 17. h5 {[%clk 0:02:49]} 17... Be4 {[%clk 0:02:39.4]} 18.
h6 {[%clk 0:02:46.7]} 18... Bh8 {[%clk 0:02:22]} 19. Bd3 {[%clk 0:02:39]} 19...
Bg6 {[%clk 0:02:20]} 20. Bxg6 {[%clk 0:02:25]} 20... fxg6 {[%clk 0:02:15]} 21.
Qd5+ {[%clk 0:02:22.3]} 21... Qf7 {[%clk 0:02:14.5]} 22. Ke2 {[%clk 0:02:14.9]}
22... Qxd5 {[%clk 0:01:55.6]} 23. Nxd5 {[%clk 0:02:14.5]} 23... Bf6 {[%clk
0:01:56.1]} 24. a4 {[%clk 0:02:13.2]} 24... Bg5 {[%clk 0:01:49.4]} 25. Nc7
{[%clk 0:02:02.7]} 25... Rac8 {[%clk 0:01:05.3]} 26. Nxa6 {[%clk 0:01:56.1]}
26... bxa4 {[%clk 0:00:47.1]} 27. Rxa4 {[%clk 0:01:57]} 27... d5 {[%clk
0:00:45.4]} 28. Rg4 {[%clk 0:01:39.5]} 28... Bf6 {[%clk 0:00:42]} 29. Nb4 {[%clk
0:01:36.7]} 29... d4 {[%clk 0:00:42]} 30. cxd4 {[%clk 0:01:30.1]} 30... exd4
{[%clk 0:00:41.6]} 31. Rd1 {[%clk 0:01:23]} 31... Rb8 {[%clk 0:00:39.3]} 32. Nd3
{[%clk 0:01:21.2]} 32... Kf7 {[%clk 0:00:34.3]} 33. Re4 {[%clk 0:01:18.2]} 33...
Rfe8 {[%clk 0:00:32.7]} 34. f3 {[%clk 0:01:06]} 34... Re6 {[%clk 0:00:27.1]} 35.
Ra1 {[%clk 0:00:57.8]} 35... Rbe8 {[%clk 0:00:26.1]} 36. Ra7+ {[%clk 0:00:56.7]}
36... Kg8 {[%clk 0:00:25.6]} 37. Nc5 {[%clk 0:00:52.2]} 37... Re5 {[%clk
0:00:22.9]} 38. Rxe5 {[%clk 0:00:48.8]} 38... Rxe5+ {[%clk 0:00:22.4]} 39. Ne4
{[%clk 0:00:48.6]} 39... Re6 {[%clk 0:00:17.8]} 40. Kd3 {[%clk 0:00:45.4]} 40...
Be5 {[%clk 0:00:17.7]} 41. Ra8+ {[%clk 0:00:43.9]} 41... Kf7 {[%clk 0:00:15.4]}
42. Ng5+ {[%clk 0:00:43.8]} 42... Kf6 {[%clk 0:00:16.1]} 43. Nxe6 {[%clk
0:00:43.7]} 43... Kxe6 {[%clk 0:00:16.7]} 44. Ra7 {[%clk 0:00:43.5]} 44... Kf5
{[%clk 0:00:16.4]} 45. Rxh7 {[%clk 0:00:43]} 45... g5 {[%clk 0:00:17.1]} 46.
Rf7+ {[%clk 0:00:42.7]} 1-0

[Event "*** Titled Tuesday Blitz"]
[Site "Chess.com"]
[Date "2020.05.26"]
[Round "1"]
[White "Chess_Boxer123"]
[Black "MartinMatthiesen"]
[Result "0-1"]
[WhiteElo "2716"]
[BlackElo "2385"]
[TimeControl "180+1"]
[EndTime "10:07:28 PDT"]
[Termination "MartinMatthiesen won by resignation"]

1. d4 {[%clk 0:03:00.5]} 1... Nf6 {[%clk 0:02:59.2]} 2. c4 {[%clk 0:02:59.7]}
2... e6 {[%clk 0:02:58.9]} 3. Nc3 {[%clk 0:02:59.3]} 3... Bb4 {[%clk 0:02:58.3]}
4. e3 {[%clk 0:02:49.3]} 4... O-O {[%clk 0:02:56.4]} 5. Bd2 {[%clk 0:02:49.5]}
5... d5 {[%clk 0:02:54.7]} 6. Nf3 {[%clk 0:02:45.7]} 6... b6 {[%clk 0:02:38.9]}
7. cxd5 {[%clk 0:02:45]} 7... exd5 {[%clk 0:02:38.3]} 8. Bd3 {[%clk 0:02:44.7]}
8... Bb7 {[%clk 0:02:36.7]} 9. O-O {[%clk 0:02:44.5]} 9... a6 {[%clk 0:02:09.1]}
10. Ne5 {[%clk 0:02:38.8]} 10... Bd6 {[%clk 0:01:51.2]} 11. f4 {[%clk
0:02:38.2]} 11... c5 {[%clk 0:01:50.5]} 12. Rf3 {[%clk 0:02:33.2]} 12... Nc6
{[%clk 0:01:41.8]} 13. Rh3 {[%clk 0:02:28.7]} 13... g6 {[%clk 0:01:39.6]} 14.
Be1 {[%clk 0:02:10.6]} 14... cxd4 {[%clk 0:01:35.6]} 15. exd4 {[%clk 0:02:10.2]}
15... Nxd4 {[%clk 0:01:30.5]} 16. Kh1 {[%clk 0:01:54.5]} 16... Ne6 {[%clk
0:01:18.5]} 17. Bg3 {[%clk 0:01:24.6]} 17... d4 {[%clk 0:01:17]} 18. Ne2 {[%clk
0:01:24.9]} 18... Nxf4 {[%clk 0:00:49.6]} 19. Nxf4 {[%clk 0:00:48.3]} 19... Bxe5
{[%clk 0:00:47.9]} 20. Qd2 {[%clk 0:00:47.6]} 20... Re8 {[%clk 0:00:28.1]} 21.
Rf1 {[%clk 0:00:45.6]} 21... Ne4 {[%clk 0:00:25.9]} 22. Bxe4 {[%clk 0:00:43.4]}
22... Bxe4 {[%clk 0:00:25.9]} 23. Nh5 {[%clk 0:00:30.3]} 23... gxh5 {[%clk
0:00:21]} 24. Qh6 {[%clk 0:00:19.8]} 24... Bg6 {[%clk 0:00:19.4]} 25. Rxh5
{[%clk 0:00:15.5]} 25... Bg7 {[%clk 0:00:18.3]} 26. Qg5 {[%clk 0:00:10.6]} 26...
Qxg5 {[%clk 0:00:17.8]} 27. Rxg5 {[%clk 0:00:11.5]} 27... Re2 {[%clk 0:00:17.3]}
28. Rd1 {[%clk 0:00:09.6]} 28... Rc8 {[%clk 0:00:16.7]} 29. h4 {[%clk 0:00:09]}
29... h6 {[%clk 0:00:16.9]} 30. Rg4 {[%clk 0:00:08.7]} 30... Kh7 {[%clk
0:00:16.9]} 31. Bf4 {[%clk 0:00:06.5]} 31... Re4 {[%clk 0:00:15.6]} 32. g3
{[%clk 0:00:03.8]} 32... h5 {[%clk 0:00:14.6]} 33. Rg5 {[%clk 0:00:03.9]} 33...
Bh6 {[%clk 0:00:14.8]} 34. Rd5 {[%clk 0:00:01.9]} 34... Bxf4 {[%clk 0:00:14.9]}
35. gxf4 {[%clk 0:00:02.2]} 35... d3 {[%clk 0:00:14.8]} 36. Rd4 {[%clk
0:00:03.1]} 36... Rxd4 {[%clk 0:00:14.7]} 0-1

[Event "*** Titled Tuesday Blitz"]
[Site "Chess.com"]
[Date "2020.05.26"]
[Round "1"]
[White "ljuks68"]
[Black "Blitzstream"]
[Result "0-1"]
[WhiteElo "2325"]
[BlackElo "2678"]
[TimeControl "180+1"]
[EndTime "10:07:28 PDT"]
[Termination "Blitzstream won on time"]

1. e4 {[%clk 0:02:58.9]} 1... d5 {[%clk 0:02:58]} 2. exd5 {[%clk 0:02:58.4]}
2... Qxd5 {[%clk 0:02:49.5]} 3. Nc3 {[%clk 0:02:58.1]} 3... Qa5 {[%clk
0:02:48.9]} 4. d4 {[%clk 0:02:58.1]} 4... Nf6 {[%clk 0:02:49.2]} 5. Bc4 {[%clk
0:02:58]} 5... Bg4 {[%clk 0:02:49]} 6. f3 {[%clk 0:02:57.4]} 6... Bf5 {[%clk
0:02:48.8]} 7. Bd2 {[%clk 0:02:57.8]} 7... Qb6 {[%clk 0:02:48]} 8. Qe2 {[%clk
0:02:55.5]} 8... Nc6 {[%clk 0:02:46.3]} 9. Na4 {[%clk 0:01:57.1]} 9... Qxd4
{[%clk 0:02:44.6]} 10. O-O-O {[%clk 0:01:48.1]} 10... O-O-O {[%clk 0:02:38.7]}
11. g4 {[%clk 0:01:38.7]} 11... Bg6 {[%clk 0:02:37]} 12. Nh3 {[%clk 0:01:34.9]}
12... e6 {[%clk 0:01:51.5]} 13. Bf4 {[%clk 0:01:29.9]} 13... Bb4 {[%clk
0:00:57.4]} 14. Rxd4 {[%clk 0:01:27.7]} 14... Nxd4 {[%clk 0:00:57.3]} 15. Qe5
{[%clk 0:01:18.6]} 15... Rd7 {[%clk 0:00:48]} 16. c3 {[%clk 0:01:11.5]} 16...
Nc6 {[%clk 0:00:48]} 17. Qe3 {[%clk 0:01:08.3]} 17... Be7 {[%clk 0:00:45.9]} 18.
Nc5 {[%clk 0:01:05.7]} 18... Bxc5 {[%clk 0:00:45.4]} 19. Qxc5 {[%clk 0:01:04.3]}
19... Rhd8 {[%clk 0:00:46.1]} 20. Bb5 {[%clk 0:00:59.2]} 20... Rd5 {[%clk
0:00:45.8]} 21. Qc4 {[%clk 0:00:55.3]} 21... Bd3 {[%clk 0:00:45.6]} 22. Qb3
{[%clk 0:00:36.8]} 22... Rxb5 {[%clk 0:00:42.9]} 23. Qa4 {[%clk 0:00:30.8]}
23... Ra5 {[%clk 0:00:39.6]} 24. Qb3 {[%clk 0:00:30.9]} 24... Rb5 {[%clk
0:00:39.4]} 25. Qa4 {[%clk 0:00:30.8]} 25... Nd5 {[%clk 0:00:29.9]} 26. Bd2
{[%clk 0:00:28]} 26... Nb6 {[%clk 0:00:29.2]} 27. Qd1 {[%clk 0:00:25.8]} 27...
Nc4 {[%clk 0:00:29.4]} 28. b3 {[%clk 0:00:21.2]} 28... Nxd2 {[%clk 0:00:28.3]}
29. Qxd2 {[%clk 0:00:19.4]} 29... Bf1 {[%clk 0:00:28.5]} 30. Qf2 {[%clk
0:00:11]} 30... Bxh3 {[%clk 0:00:27.9]} 31. Qg3 {[%clk 0:00:10.6]} 31... Rc5
{[%clk 0:00:18]} 32. c4 {[%clk 0:00:08.2]} 32... b5 {[%clk 0:00:16.4]} 33. Qxh3
{[%clk 0:00:05.5]} 33... bxc4 {[%clk 0:00:16.7]} 34. bxc4 {[%clk 0:00:02.6]}
34... Rxc4+ {[%clk 0:00:17.6]} 35. Kb1 {[%clk 0:00:02.6]} 35... Rb4+ {[%clk
0:00:16.4]} 36. Ka1 {[%clk 0:00:02.3]} 36... Rd2 {[%clk 0:00:12.8]} 37. Qxh7
{[%clk 0:00:01.3]} 37... Rbb2 {[%clk 0:00:09.2]} 0-1